[Event "Early-Titled-Tuesday-Blitz-May-28-2024"]
[Site "Chess.com"]
[Date "2024.05.28"]
[Round "1"]
[White "NovakRatko"]
[Black "ozates"]
[Result "1-0"]
[WhiteElo "2372"]
[BlackElo "2642"]
[TimeControl "180+1"]
[EndTime "8:07:24 PDT"]
[Termination "NovakRatko won by resignation"]

1. d4 {[%clk 0:02:57.7]} 1... Nf6 {[%clk 0:02:09.7]} 2. c4 {[%clk 0:02:57.1]}
2... g6 {[%clk 0:02:08]} 3. Nc3 {[%clk 0:02:57]} 3... Bg7 {[%clk 0:02:08.6]} 4.
e4 {[%clk 0:02:57.3]} 4... O-O {[%clk 0:02:09.3]} 5. f3 {[%clk 0:02:57.9]} 5...
d6 {[%clk 0:02:10]} 6. Be3 {[%clk 0:02:58.5]} 6... c5 {[%clk 0:02:10.6]} 7. dxc5
{[%clk 0:02:59.4]} 7... dxc5 {[%clk 0:02:11.1]} 8. Qxd8 {[%clk 0:03:00.3]} 8...
Rxd8 {[%clk 0:02:11.6]} 9. Bxc5 {[%clk 0:03:01.2]} 9... Nc6 {[%clk 0:02:12.3]}
10. Nd5 {[%clk 0:03:01.2]} 10... Nxd5 {[%clk 0:02:10]} 11. cxd5 {[%clk
0:03:00.7]} 11... Bxb2 {[%clk 0:02:10.7]} 12. Rb1 {[%clk 0:03:00.9]} 12... Bc3+
{[%clk 0:02:10.8]} 13. Ke2 {[%clk 0:02:54.4]} 13... b6 {[%clk 0:02:09.6]} 14.
Ba3 {[%clk 0:02:48.6]} 14... Ba6+ {[%clk 0:02:02.5]} 15. Kf2 {[%clk 0:02:48]}
15... Bd4+ {[%clk 0:02:00.3]} 16. Kg3 {[%clk 0:02:47.8]} 16... Bxf1 {[%clk
0:01:57]} 17. Rxf1 {[%clk 0:02:45.5]} 17... Na5 {[%clk 0:01:56.3]} 18. Bxe7
{[%clk 0:02:44.7]} 18... Re8 {[%clk 0:01:56.3]} 19. d6 {[%clk 0:02:41.2]} 19...
Nc6 {[%clk 0:01:48.2]} 20. f4 {[%clk 0:02:41]} 20... Nxe7 {[%clk 0:01:44.7]} 21.
dxe7 {[%clk 0:02:40.8]} 21... Rxe7 {[%clk 0:01:45.6]} 22. e5 {[%clk 0:02:40.6]}
22... f6 {[%clk 0:01:46]} 23. Nf3 {[%clk 0:02:40.4]} 23... fxe5 {[%clk
0:01:45.6]} 24. Nxd4 {[%clk 0:02:36.6]} 24... exd4 {[%clk 0:01:45.9]} 25. Rd1
{[%clk 0:02:37]} 25... Rd8 {[%clk 0:01:45.5]} 26. Rd3 {[%clk 0:02:36.9]} 26...
Re2 {[%clk 0:01:42.7]} 27. a3 {[%clk 0:02:35.9]} 27... Re3+ {[%clk 0:01:43]} 28.
Rxe3 {[%clk 0:02:35.5]} 28... dxe3 {[%clk 0:01:43.9]} 29. Kf3 {[%clk 0:02:34.9]}
29... Rd3 {[%clk 0:01:43.9]} 30. Ra1 {[%clk 0:02:35.2]} 30... Kf7 {[%clk
0:01:42.8]} 31. g4 {[%clk 0:02:34.8]} 31... Ke6 {[%clk 0:01:42.6]} 32. Ke4
{[%clk 0:02:34.9]} 32... Rb3 {[%clk 0:01:42.6]} 33. h4 {[%clk 0:02:25.4]} 33...
b5 {[%clk 0:01:42.3]} 34. a4 {[%clk 0:02:18.2]} 34... b4 {[%clk 0:01:31.9]} 35.
a5 {[%clk 0:02:17.5]} 35... a6 {[%clk 0:01:26]} 36. Kf3 {[%clk 0:02:12.6]} 36...
Kd5 {[%clk 0:01:25.1]} 37. Rd1+ {[%clk 0:02:12.3]} 37... Kc5 {[%clk 0:01:20.2]}
38. f5 {[%clk 0:02:07.6]} 38... gxf5 {[%clk 0:01:19.1]} 39. gxf5 {[%clk
0:02:07.8]} 39... Rb2 {[%clk 0:00:55.6]} 40. Kxe3 {[%clk 0:02:06.9]} 40... Rb3+
{[%clk 0:00:43.5]} 41. Ke4 {[%clk 0:02:06.2]} 41... Rb2 {[%clk 0:00:43.6]} 42.
Ke3 {[%clk 0:01:55]} 42... Rg2 {[%clk 0:00:40.8]} 43. f6 {[%clk 0:01:21.7]}
43... Rg8 {[%clk 0:00:36.2]} 44. Ke4 {[%clk 0:01:19.2]} 44... Kb5 {[%clk
0:00:30.6]} 45. Rd5+ {[%clk 0:01:18.9]} 45... Ka4 {[%clk 0:00:27.4]} 46. Ke5
{[%clk 0:01:18.5]} 46... b3 {[%clk 0:00:27.7]} 47. Ke6 {[%clk 0:01:16.1]} 47...
b2 {[%clk 0:00:11.3]} 48. Rd1 {[%clk 0:01:15.7]} 48... Kb3 {[%clk 0:00:09.1]}
49. f7 {[%clk 0:01:15.6]} 49... Rb8 {[%clk 0:00:09]} 50. Ke7 {[%clk 0:01:11.7]}
50... Rb7+ {[%clk 0:00:04.5]} 51. Kf6 {[%clk 0:01:10.9]} 51... Rb8 {[%clk
0:00:04.7]} 52. Kg7 {[%clk 0:01:11.1]} 52... Rb7 {[%clk 0:00:03.8]} 53. Kg8
{[%clk 0:01:11.1]} 53... Rb8+ {[%clk 0:00:02.7]} 54. f8=Q {[%clk 0:01:09.4]}
54... Rxf8+ {[%clk 0:00:03.3]} 55. Kxf8 {[%clk 0:01:09.7]} 55... Kc2 {[%clk
0:00:04.2]} 56. Rg1 {[%clk 0:01:08.5]} 56... b1=Q {[%clk 0:00:05.1]} 57. Rxb1
{[%clk 0:01:08.4]} 57... Kxb1 {[%clk 0:00:06]} 58. Kg7 {[%clk 0:01:09]} 58...
Ka2 {[%clk 0:00:06.1]} 59. Kxh7 {[%clk 0:01:09.5]} 59... Ka3 {[%clk 0:00:07]}
60. Kg6 {[%clk 0:01:08.3]} 60... Ka4 {[%clk 0:00:07.9]} 61. h5 {[%clk
0:01:09.1]} 61... Kxa5 {[%clk 0:00:08.5]} 62. h6 {[%clk 0:01:10]} 62... Kb4
{[%clk 0:00:09.4]} 63. h7 {[%clk 0:01:10.7]} 63... a5 {[%clk 0:00:10.3]} 64.
h8=Q {[%clk 0:01:10.2]} 64... a4 {[%clk 0:00:11.2]} 65. Qa1 {[%clk 0:01:10.6]}
65... a3 {[%clk 0:00:12.1]} 66. Kf5 {[%clk 0:01:09.6]} 1-0

[Event "Early-Titled-Tuesday-Blitz-May-28-2024"]
[Site "Chess.com"]
[Date "2024.05.28"]
[Round "1"]
[White "Lady_Nika"]
[Black "FGHSMN"]
[Result "0-1"]
[WhiteElo "2494"]
[BlackElo "2891"]
[TimeControl "180+1"]
[EndTime "8:07:26 PDT"]
[Termination "FGHSMN won by checkmate"]

1. e4 {[%clk 0:02:59.5]} 1... e5 {[%clk 0:02:59.8]} 2. Nf3 {[%clk 0:02:59.4]}
2... Nc6 {[%clk 0:03:00.4]} 3. Bb5 {[%clk 0:02:59.6]} 3... a6 {[%clk 0:03:00.6]}
4. Ba4 {[%clk 0:02:59.8]} 4... Nf6 {[%clk 0:03:00.2]} 5. O-O {[%clk 0:02:59.8]}
5... d6 {[%clk 0:03:00]} 6. h3 {[%clk 0:02:58.2]} 6... Bd7 {[%clk 0:02:59]} 7.
c3 {[%clk 0:02:57.6]} 7... g6 {[%clk 0:02:59.3]} 8. Re1 {[%clk 0:02:57.3]} 8...
Bg7 {[%clk 0:02:59.8]} 9. d4 {[%clk 0:02:56.6]} 9... O-O {[%clk 0:03:00.5]} 10.
d5 {[%clk 0:02:54]} 10... Ne7 {[%clk 0:03:00.2]} 11. Bxd7 {[%clk 0:02:54.5]}
11... Nxd7 {[%clk 0:03:01.1]} 12. c4 {[%clk 0:02:55.1]} 12... h6 {[%clk
0:03:00.4]} 13. Nc3 {[%clk 0:02:55.3]} 13... f5 {[%clk 0:03:00.5]} 14. b4 {[%clk
0:02:55]} 14... a5 {[%clk 0:02:59.4]} 15. Ba3 {[%clk 0:02:45.8]} 15... axb4
{[%clk 0:02:58.5]} 16. Bxb4 {[%clk 0:02:46.7]} 16... Nf6 {[%clk 0:02:52.3]} 17.
c5 {[%clk 0:02:43.5]} 17... fxe4 {[%clk 0:02:15.6]} 18. cxd6 {[%clk 0:02:39.1]}
18... cxd6 {[%clk 0:02:13.2]} 19. Nxe4 {[%clk 0:02:39.1]} 19... Nxe4 {[%clk
0:02:05.6]} 20. Rxe4 {[%clk 0:02:39.3]} 20... Qd7 {[%clk 0:01:58]} 21. a4 {[%clk
0:02:35.5]} 21... g5 {[%clk 0:01:52.1]} 22. Qb3 {[%clk 0:02:20.8]} 22... Ng6
{[%clk 0:01:46.7]} 23. Qa3 {[%clk 0:02:12.6]} 23... Rf6 {[%clk 0:01:45.1]} 24.
a5 {[%clk 0:02:09.5]} 24... Nf4 {[%clk 0:01:42.6]} 25. Nh2 {[%clk 0:01:40.1]}
25... h5 {[%clk 0:01:33.4]} 26. Nf1 {[%clk 0:01:33.7]} 26... Raf8 {[%clk
0:01:18.1]} 27. Ra2 {[%clk 0:01:22.2]} 27... Nxd5 {[%clk 0:01:03.1]} 28. Rd2
{[%clk 0:01:13.8]} 28... Nxb4 {[%clk 0:00:40.5]} 29. Qxb4 {[%clk 0:01:12.8]}
29... Qf7 {[%clk 0:00:41]} 30. Ne3 {[%clk 0:01:05.8]} 30... Rxf2 {[%clk
0:00:37.7]} 31. Qxd6 {[%clk 0:00:56.2]} 31... Rf4 {[%clk 0:00:37.9]} 32. Rb4
{[%clk 0:00:46.3]} 32... Kh8 {[%clk 0:00:33.4]} 33. Rb1 {[%clk 0:00:33.7]} 33...
Rd4 {[%clk 0:00:33.2]} 34. Rxd4 {[%clk 0:00:31.8]} 34... exd4 {[%clk 0:00:34.1]}
35. Nd5 {[%clk 0:00:30.7]} 35... d3 {[%clk 0:00:29.4]} 36. Ne7 {[%clk
0:00:29.2]} 36... Re8 {[%clk 0:00:23.5]} 37. Rxb7 {[%clk 0:00:12.9]} 37... d2
{[%clk 0:00:23.6]} 38. Ng6+ {[%clk 0:00:11.7]} 38... Qxg6 {[%clk 0:00:23.6]} 39.
Qxg6 {[%clk 0:00:11.6]} 39... d1=Q+ {[%clk 0:00:24]} 40. Kh2 {[%clk 0:00:10.8]}
40... Be5+ {[%clk 0:00:24.5]} 41. g3 {[%clk 0:00:11]} 41... Qe2+ {[%clk
0:00:25]} 42. Kh1 {[%clk 0:00:10.8]} 42... Qe1+ {[%clk 0:00:25]} 43. Kg2 {[%clk
0:00:10]} 43... Qxg3+ {[%clk 0:00:25.3]} 44. Kf1 {[%clk 0:00:10.3]} 44... Qf3+
{[%clk 0:00:25]} 45. Ke1 {[%clk 0:00:09.7]} 45... Bc3# {[%clk 0:00:25.4]} 0-1

[Event "Early-Titled-Tuesday-Blitz-May-28-2024"]
[Site "Chess.com"]
[Date "2024.05.28"]
[Round "1"]
[White "GothamChess"]
[Black "michaelk123"]
[Result "1-0"]
[WhiteElo "2788"]
[BlackElo "2443"]
[TimeControl "180+1"]
[EndTime "8:07:26 PDT"]
[Termination "GothamChess won on time"]

1. e4 {[%clk 0:02:53.7]} 1... c6 {[%clk 0:02:58]} 2. d4 {[%clk 0:02:52.9]} 2...
d5 {[%clk 0:02:58]} 3. f3 {[%clk 0:02:52.9]} 3... e6 {[%clk 0:02:54.1]} 4. Nc3
{[%clk 0:02:51.1]} 4... Bb4 {[%clk 0:02:53.2]} 5. a3 {[%clk 0:02:50.8]} 5...
Bxc3+ {[%clk 0:02:52.8]} 6. bxc3 {[%clk 0:02:51.7]} 6... b6 {[%clk 0:02:52.4]}
7. Be3 {[%clk 0:02:51.1]} 7... Ne7 {[%clk 0:02:50.7]} 8. Bd3 {[%clk 0:02:51.1]}
8... Ba6 {[%clk 0:02:50.1]} 9. Ne2 {[%clk 0:02:51.5]} 9... Bxd3 {[%clk
0:02:44.5]} 10. cxd3 {[%clk 0:02:51.7]} 10... Nd7 {[%clk 0:02:43.6]} 11. O-O
{[%clk 0:02:50.9]} 11... Qc7 {[%clk 0:02:43]} 12. Bf4 {[%clk 0:02:44.2]} 12...
Qc8 {[%clk 0:02:36.8]} 13. Bd6 {[%clk 0:02:40]} 13... c5 {[%clk 0:02:19.8]} 14.
Bxe7 {[%clk 0:02:29.9]} 14... Kxe7 {[%clk 0:02:20.6]} 15. exd5 {[%clk
0:02:23.8]} 15... exd5 {[%clk 0:02:07.5]} 16. Nf4 {[%clk 0:02:23.3]} 16... Re8
{[%clk 0:02:06]} 17. Nxd5+ {[%clk 0:02:19.9]} 17... Kf8 {[%clk 0:02:06.2]} 18.
Qa4 {[%clk 0:02:11.7]} 18... Qb7 {[%clk 0:01:47.7]} 19. Nf4 {[%clk 0:01:43.5]}
19... b5 {[%clk 0:01:27.4]} 20. Rab1 {[%clk 0:01:38.4]} 20... Qc7 {[%clk
0:01:20.6]} 21. Qxb5 {[%clk 0:01:32.6]} 21... Rab8 {[%clk 0:01:19.2]} 22. Nd5
{[%clk 0:01:23.7]} 22... Qd6 {[%clk 0:01:11.8]} 23. Qc4 {[%clk 0:01:20.3]} 23...
Rbc8 {[%clk 0:00:42.8]} 24. a4 {[%clk 0:00:55.1]} 24... Re2 {[%clk 0:00:24.5]}
25. Rfe1 {[%clk 0:00:46.6]} 25... Rce8 {[%clk 0:00:20.7]} 26. Rxe2 {[%clk
0:00:45]} 26... Rxe2 {[%clk 0:00:20.4]} 27. dxc5 {[%clk 0:00:37.2]} 27... Nxc5
{[%clk 0:00:13.6]} 28. Nf4 {[%clk 0:00:31.2]} 28... Rd2 {[%clk 0:00:05.5]} 29.
a5 {[%clk 0:00:14]} 29... g6 {[%clk 0:00:05.5]} 30. Qd4 {[%clk 0:00:10.6]} 30...
Qxd4+ {[%clk 0:00:03.7]} 31. cxd4 {[%clk 0:00:11.5]} 31... Nd7 {[%clk
0:00:03.3]} 32. Rb7 {[%clk 0:00:09.4]} 32... Nf6 {[%clk 0:00:02.5]} 33. Rxa7
{[%clk 0:00:08.6]} 33... g5 {[%clk 0:00:02.6]} 34. Nh3 {[%clk 0:00:05.5]} 34...
h6 {[%clk 0:00:01.5]} 35. Nf2 {[%clk 0:00:05.4]} 35... Nd5 {[%clk 0:00:01.5]}
36. Ra8+ {[%clk 0:00:05.7]} 1-0

[Event "Early-Titled-Tuesday-Blitz-May-28-2024"]
[Site "Chess.com"]
[Date "2024.05.28"]
[Round "1"]
[White "ATM622"]
[Black "ilya2700"]
[Result "1-0"]
[WhiteElo "2582"]
[BlackElo "2182"]
[TimeControl "180+1"]
[EndTime "8:07:27 PDT"]
[Termination "ATM622 won by checkmate"]

1. d4 {[%clk 0:02:57]} 1... Nf6 {[%clk 0:02:58.2]} 2. c4 {[%clk 0:02:55.7]} 2...
g6 {[%clk 0:02:58.4]} 3. g3 {[%clk 0:02:53.1]} 3... Bg7 {[%clk 0:02:57]} 4. Bg2
{[%clk 0:02:53]} 4... O-O {[%clk 0:02:55.8]} 5. Nf3 {[%clk 0:02:53.3]} 5... d6
{[%clk 0:02:55.8]} 6. O-O {[%clk 0:02:53.4]} 6... c5 {[%clk 0:02:55.6]} 7. Nc3
{[%clk 0:02:53.4]} 7... Nc6 {[%clk 0:02:55.6]} 8. d5 {[%clk 0:02:51.1]} 8... Na5
{[%clk 0:02:55.3]} 9. Qd3 {[%clk 0:02:51.1]} 9... e6 {[%clk 0:02:54.1]} 10. Bg5
{[%clk 0:02:44.4]} 10... h6 {[%clk 0:02:47.2]} 11. Bxf6 {[%clk 0:02:44.6]} 11...
Bxf6 {[%clk 0:02:46.8]} 12. Rad1 {[%clk 0:02:39]} 12... e5 {[%clk 0:02:41]} 13.
Ne4 {[%clk 0:02:34.8]} 13... Bg7 {[%clk 0:02:40.1]} 14. Nh4 {[%clk 0:02:26.6]}
14... g5 {[%clk 0:02:29.8]} 15. Nf3 {[%clk 0:01:25.8]} 15... f5 {[%clk
0:02:26.4]} 16. Nfd2 {[%clk 0:01:26.1]} 16... fxe4 {[%clk 0:02:23.7]} 17. Bxe4
{[%clk 0:01:26.7]} 17... Bh3 {[%clk 0:02:06.8]} 18. Rfe1 {[%clk 0:01:26.7]}
18... b6 {[%clk 0:02:02.3]} 19. a3 {[%clk 0:01:26.6]} 19... Nb7 {[%clk
0:02:01.8]} 20. f3 {[%clk 0:01:21]} 20... Bd7 {[%clk 0:01:56.4]} 21. Kh1 {[%clk
0:01:17.8]} 21... a6 {[%clk 0:01:52.2]} 22. Nf1 {[%clk 0:01:15.8]} 22... b5
{[%clk 0:01:52.1]} 23. b3 {[%clk 0:01:15.8]} 23... Qf6 {[%clk 0:01:34.8]} 24.
Ne3 {[%clk 0:01:15.1]} 24... Kh8 {[%clk 0:01:30.9]} 25. g4 {[%clk 0:01:14]}
25... b4 {[%clk 0:01:26.9]} 26. a4 {[%clk 0:01:13.1]} 26... Rae8 {[%clk
0:01:17.5]} 27. Rg1 {[%clk 0:01:11.2]} 27... Na5 {[%clk 0:01:09.9]} 28. Rg3
{[%clk 0:01:11.1]} 28... Re7 {[%clk 0:00:55.7]} 29. Rh3 {[%clk 0:01:10.6]} 29...
Qf4 {[%clk 0:00:46.2]} 30. Nf1 {[%clk 0:01:04.1]} 30... Ref7 {[%clk 0:00:34.4]}
31. Ng3 {[%clk 0:01:04.5]} 31... Bxg4 {[%clk 0:00:29.8]} 32. fxg4 {[%clk
0:01:01.6]} 32... Qxg4 {[%clk 0:00:29.4]} 33. Bg2 {[%clk 0:01:01.9]} 33... Rf2
{[%clk 0:00:22.7]} 34. Qg6 {[%clk 0:00:59.8]} 34... R8f6 {[%clk 0:00:17.1]} 35.
Qe8+ {[%clk 0:00:58.7]} 35... Kh7 {[%clk 0:00:17.1]} 36. Be4+ {[%clk 0:00:56.8]}
36... R2f5 {[%clk 0:00:13.3]} 37. Bxf5+ {[%clk 0:00:50.8]} 37... Rxf5 {[%clk
0:00:12.7]} 38. Nxf5 {[%clk 0:00:50.4]} 38... Qxf5 {[%clk 0:00:09.1]} 39. Qh5
{[%clk 0:00:49.1]} 39... Qe4+ {[%clk 0:00:08.8]} 40. Qf3 {[%clk 0:00:48.4]}
40... Qg6 {[%clk 0:00:08.1]} 41. Qd3 {[%clk 0:00:46.1]} 41... e4 {[%clk
0:00:08.5]} 42. Qg3 {[%clk 0:00:45.5]} 42... Be5 {[%clk 0:00:08.5]} 43. Qg4
{[%clk 0:00:45.5]} 43... Bf4 {[%clk 0:00:05.9]} 44. Rf1 {[%clk 0:00:45.1]} 44...
e3 {[%clk 0:00:05.9]} 45. Rxf4 {[%clk 0:00:41.5]} 45... gxf4 {[%clk 0:00:06.1]}
46. Qxf4 {[%clk 0:00:41.3]} 46... Qb1+ {[%clk 0:00:05.4]} 47. Kg2 {[%clk
0:00:41.3]} 47... Qxb3 {[%clk 0:00:04.1]} 48. Rxh6+ {[%clk 0:00:36.4]} 48... Kg8
{[%clk 0:00:03.9]} 49. Rg6+ {[%clk 0:00:35.3]} 49... Kh7 {[%clk 0:00:03.7]} 50.
Qh6# {[%clk 0:00:35.8]} 1-0

[Event "Early-Titled-Tuesday-Blitz-May-28-2024"]
[Site "Chess.com"]
[Date "2024.05.28"]
[Round "1"]
[White "jup1978"]
[Black "Losingexperience"]
[Result "0-1"]
[WhiteElo "2429"]
[BlackElo "2760"]
[TimeControl "180+1"]
[EndTime "8:07:31 PDT"]
[Termination "Losingexperience won on time"]

1. d4 {[%clk 0:02:56.1]} 1... Nf6 {[%clk 0:03:00]} 2. Nf3 {[%clk 0:02:54.6]}
2... g6 {[%clk 0:02:59.6]} 3. c4 {[%clk 0:02:54]} 3... Bg7 {[%clk 0:02:59.8]} 4.
g3 {[%clk 0:02:54.6]} 4... O-O {[%clk 0:02:59.9]} 5. Bg2 {[%clk 0:02:55.3]} 5...
d6 {[%clk 0:03:00.5]} 6. Nc3 {[%clk 0:02:55.6]} 6... Nbd7 {[%clk 0:03:01]} 7.
O-O {[%clk 0:02:55.1]} 7... e5 {[%clk 0:03:01.5]} 8. Bg5 {[%clk 0:02:41.8]} 8...
h6 {[%clk 0:02:55.3]} 9. Bd2 {[%clk 0:02:37.7]} 9... exd4 {[%clk 0:02:45.6]} 10.
Nxd4 {[%clk 0:02:38.6]} 10... Nc5 {[%clk 0:02:42.3]} 11. Qc2 {[%clk 0:02:28.6]}
11... a5 {[%clk 0:02:39.8]} 12. Rad1 {[%clk 0:02:28]} 12... Bd7 {[%clk
0:02:37.7]} 13. Nb3 {[%clk 0:02:21.6]} 13... Ne6 {[%clk 0:01:59.6]} 14. Bc1
{[%clk 0:02:00.7]} 14... a4 {[%clk 0:01:55.3]} 15. Nd4 {[%clk 0:01:59.7]} 15...
Nc5 {[%clk 0:01:55.3]} 16. Nd5 {[%clk 0:01:55.5]} 16... Nxd5 {[%clk 0:01:54.1]}
17. cxd5 {[%clk 0:01:56.4]} 17... Qc8 {[%clk 0:01:52.6]} 18. b4 {[%clk
0:01:48.8]} 18... axb3 {[%clk 0:01:51.9]} 19. axb3 {[%clk 0:01:49.7]} 19... Bh3
{[%clk 0:01:48.7]} 20. b4 {[%clk 0:01:46.5]} 20... Bxg2 {[%clk 0:01:43.9]} 21.
Kxg2 {[%clk 0:01:47.4]} 21... Na6 {[%clk 0:01:44.5]} 22. Qc4 {[%clk 0:01:38.5]}
22... Qd7 {[%clk 0:01:33.9]} 23. Nb3 {[%clk 0:01:28.5]} 23... Qa4 {[%clk
0:01:23.5]} 24. Bd2 {[%clk 0:01:26.7]} 24... b5 {[%clk 0:01:23.2]} 25. Qc2
{[%clk 0:01:14.2]} 25... Nxb4 {[%clk 0:01:22.4]} 26. Bxb4 {[%clk 0:00:46.7]}
26... Qxb4 {[%clk 0:01:23.3]} 27. Rb1 {[%clk 0:00:45.9]} 27... Rfe8 {[%clk
0:01:03.4]} 28. Qxc7 {[%clk 0:00:38.7]} 28... Rxe2 {[%clk 0:00:50.7]} 29. Qc1
{[%clk 0:00:09.4]} 29... Raa2 {[%clk 0:00:42]} 30. Kg1 {[%clk 0:00:08.5]} 30...
Kh7 {[%clk 0:00:36.9]} 31. Qd1 {[%clk 0:00:07.7]} 31... Qe4 {[%clk 0:00:28.5]}
32. Rc1 {[%clk 0:00:04]} 32... Qf3 {[%clk 0:00:19.4]} 33. Rb1 {[%clk 0:00:01.8]}
33... Qf5 {[%clk 0:00:13.4]} 34. Rc1 {[%clk 0:00:01.5]} 34... Rxf2 {[%clk
0:00:12]} 35. Qe1 {[%clk 0:00:01]} 35... Rg2+ {[%clk 0:00:11.5]} 36. Kh1 {[%clk
0:00:01.2]} 36... Rxh2+ {[%clk 0:00:12]} 0-1

[Event "Early-Titled-Tuesday-Blitz-May-28-2024"]
[Site "Chess.com"]
[Date "2024.05.28"]
[Round "1"]
[White "Grischuk"]
[Black "Fh2411"]
[Result "1-0"]
[WhiteElo "3113"]
[BlackElo "2549"]
[TimeControl "180+1"]
[EndTime "8:07:32 PDT"]
[Termination "Grischuk won by checkmate"]

1. d4 {[%clk 0:02:45.8]} 1... d5 {[%clk 0:02:56]} 2. Nf3 {[%clk 0:02:45.6]} 2...
Nf6 {[%clk 0:02:54.8]} 3. Bg5 {[%clk 0:02:46.3]} 3... Ne4 {[%clk 0:02:48.6]} 4.
Bh4 {[%clk 0:02:46]} 4... c6 {[%clk 0:02:47.9]} 5. e3 {[%clk 0:02:44.5]} 5...
Bf5 {[%clk 0:02:31.8]} 6. c4 {[%clk 0:02:44.1]} 6... Qa5+ {[%clk 0:02:28.6]} 7.
Nbd2 {[%clk 0:02:42.2]} 7... e6 {[%clk 0:02:28.6]} 8. a3 {[%clk 0:02:38.8]} 8...
Nxd2 {[%clk 0:02:03.6]} 9. Nxd2 {[%clk 0:02:38.2]} 9... Nd7 {[%clk 0:02:03.7]}
10. Rc1 {[%clk 0:02:15]} 10... Bd6 {[%clk 0:01:51.4]} 11. c5 {[%clk 0:02:14.6]}
11... Be7 {[%clk 0:01:34.7]} 12. Bxe7 {[%clk 0:02:14.1]} 12... Kxe7 {[%clk
0:01:35.1]} 13. Be2 {[%clk 0:02:10.8]} 13... Qc7 {[%clk 0:01:30.9]} 14. b4
{[%clk 0:02:08.1]} 14... e5 {[%clk 0:01:11.1]} 15. Nb3 {[%clk 0:02:06.2]} 15...
Rhe8 {[%clk 0:01:05.2]} 16. O-O {[%clk 0:02:05.5]} 16... Kf8 {[%clk 0:01:04.6]}
17. b5 {[%clk 0:02:03]} 17... a6 {[%clk 0:00:30.4]} 18. b6 {[%clk 0:01:49.1]}
18... Qd8 {[%clk 0:00:28.4]} 19. Na5 {[%clk 0:01:46]} 19... Qc8 {[%clk
0:00:24.8]} 20. Qd2 {[%clk 0:01:27.8]} 20... Re7 {[%clk 0:00:24.9]} 21. f3
{[%clk 0:01:18.3]} 21... Nf6 {[%clk 0:00:23.8]} 22. g4 {[%clk 0:01:01.3]} 22...
Bd7 {[%clk 0:00:20.3]} 23. g5 {[%clk 0:00:54.4]} 23... Ng8 {[%clk 0:00:17.5]}
24. Rf2 {[%clk 0:00:42.2]} 24... h6 {[%clk 0:00:16.5]} 25. h4 {[%clk 0:00:30]}
25... Bf5 {[%clk 0:00:16.2]} 26. Bf1 {[%clk 0:00:08.4]} 26... Qe6 {[%clk
0:00:15.9]} 27. Bg2 {[%clk 0:00:08.6]} 27... exd4 {[%clk 0:00:15.4]} 28. exd4
{[%clk 0:00:08.4]} 28... Rae8 {[%clk 0:00:15.6]} 29. Bf1 {[%clk 0:00:06.1]}
29... Qd7 {[%clk 0:00:15.6]} 30. Re2 {[%clk 0:00:05.4]} 30... Rxe2 {[%clk
0:00:14.4]} 31. Bxe2 {[%clk 0:00:06.3]} 31... hxg5 {[%clk 0:00:13.1]} 32. hxg5
{[%clk 0:00:06.3]} 32... Ne7 {[%clk 0:00:13.7]} 33. Re1 {[%clk 0:00:05.9]} 33...
Ng6 {[%clk 0:00:14.1]} 34. Bf1 {[%clk 0:00:05.9]} 34... Rxe1 {[%clk 0:00:13.9]}
35. Qxe1 {[%clk 0:00:06.8]} 35... Nf4 {[%clk 0:00:13.5]} 36. Qe3 {[%clk
0:00:06.7]} 36... Ne6 {[%clk 0:00:13.3]} 37. Kf2 {[%clk 0:00:06.7]} 37... g6
{[%clk 0:00:11.9]} 38. f4 {[%clk 0:00:05.7]} 38... Nd8 {[%clk 0:00:11.7]} 39.
Qe5 {[%clk 0:00:05.6]} 39... Qe7 {[%clk 0:00:11.7]} 40. Qh8# {[%clk 0:00:05.2]}
1-0

[Event "Early-Titled-Tuesday-Blitz-May-28-2024"]
[Site "Chess.com"]
[Date "2024.05.28"]
[Round "1"]
[White "ritanovikova"]
[Black "GameOverBro"]
[Result "0-1"]
[WhiteElo "2176"]
[BlackElo "2581"]
[TimeControl "180+1"]
[EndTime "8:07:32 PDT"]
[Termination "GameOverBro won by resignation"]

1. e4 {[%clk 0:02:58.9]} 1... d6 {[%clk 0:00:31]} 2. d4 {[%clk 0:02:58]} 2...
Nf6 {[%clk 0:00:28.3]} 3. Nc3 {[%clk 0:02:57.8]} 3... e5 {[%clk 0:00:24.6]} 4.
dxe5 {[%clk 0:02:57.2]} 4... dxe5 {[%clk 0:00:18.9]} 5. Qxd8+ {[%clk 0:02:57.5]}
5... Kxd8 {[%clk 0:00:19.8]} 6. Bg5 {[%clk 0:02:57.8]} 6... Be6 {[%clk
0:00:20.3]} 7. Nf3 {[%clk 0:02:56]} 7... Nd7 {[%clk 0:00:19.8]} 8. Bb5 {[%clk
0:02:51.3]} 8... Kc8 {[%clk 0:00:20.3]} 9. O-O-O {[%clk 0:02:49.4]} 9... c6
{[%clk 0:00:20.7]} 10. Ba4 {[%clk 0:02:48.9]} 10... h6 {[%clk 0:00:21.3]} 11.
Bh4 {[%clk 0:02:48.2]} 11... b5 {[%clk 0:00:21.6]} 12. Bb3 {[%clk 0:02:48]}
12... Bxb3 {[%clk 0:00:22.1]} 13. axb3 {[%clk 0:02:48.2]} 13... Nh5 {[%clk
0:00:19.8]} 14. Rxd7 {[%clk 0:02:38.7]} 14... Kxd7 {[%clk 0:00:19.4]} 15. Nxe5+
{[%clk 0:02:38]} 15... Ke6 {[%clk 0:00:19.5]} 16. Nxc6 {[%clk 0:02:36.3]} 16...
Bc5 {[%clk 0:00:18.9]} 17. Nxb5 {[%clk 0:02:23.7]} 17... Rac8 {[%clk 0:00:17.4]}
18. Ncd4+ {[%clk 0:02:13.9]} 18... Bxd4 {[%clk 0:00:16.6]} 19. Nxd4+ {[%clk
0:02:13.9]} 19... Ke5 {[%clk 0:00:17.5]} 20. Nf5 {[%clk 0:02:06.1]} 20... g5
{[%clk 0:00:17.3]} 21. Bg3+ {[%clk 0:02:04.8]} 21... Nxg3 {[%clk 0:00:17.9]} 22.
hxg3 {[%clk 0:02:04.9]} 22... h5 {[%clk 0:00:18.4]} 23. f3 {[%clk 0:02:03.3]}
23... Rcd8 {[%clk 0:00:16.4]} 24. Ne7 {[%clk 0:02:01.1]} 24... Rd6 {[%clk
0:00:15.8]} 25. Nf5 {[%clk 0:01:52.1]} 25... Rc6 {[%clk 0:00:14.8]} 26. c3
{[%clk 0:01:49.8]} 26... h4 {[%clk 0:00:13.9]} 27. gxh4 {[%clk 0:01:48.4]} 27...
gxh4 {[%clk 0:00:14.8]} 28. Kc2 {[%clk 0:01:45.8]} 28... Kf4 {[%clk 0:00:14.2]}
29. Nd4 {[%clk 0:01:33.6]} 29... Rg6 {[%clk 0:00:13.2]} 30. Ne2+ {[%clk
0:01:23.9]} 30... Ke3 {[%clk 0:00:13.6]} 31. Re1 {[%clk 0:01:10.8]} 31... Rxg2
{[%clk 0:00:13.5]} 32. Kd1 {[%clk 0:01:06.8]} 32... Rd8+ {[%clk 0:00:14]} 33.
Nd4+ {[%clk 0:01:05.1]} 33... Kf4 {[%clk 0:00:11.8]} 34. Rh1 {[%clk 0:01:03.8]}
34... Rh8 {[%clk 0:00:07.1]} 35. Rh3 {[%clk 0:00:54.6]} 35... Rxb2 {[%clk
0:00:05.9]} 36. Ne2+ {[%clk 0:00:54.9]} 36... Ke3 {[%clk 0:00:05.8]} 37. Ng3
{[%clk 0:00:48.6]} 37... hxg3 {[%clk 0:00:04.3]} 38. Rxh8 {[%clk 0:00:48.5]}
38... g2 {[%clk 0:00:05.2]} 39. Kc1 {[%clk 0:00:46.5]} 39... Kxf3 {[%clk
0:00:06.1]} 40. Rg8 {[%clk 0:00:43.5]} 40... Rf2 {[%clk 0:00:06.5]} 41. Rg7
{[%clk 0:00:39.4]} 41... Rf1+ {[%clk 0:00:06.9]} 42. Kc2 {[%clk 0:00:39.5]}
42... g1=Q {[%clk 0:00:07.8]} 43. Rxf7+ {[%clk 0:00:39.6]} 43... Kxe4 {[%clk
0:00:08.4]} 44. Re7+ {[%clk 0:00:39.5]} 44... Kd5 {[%clk 0:00:08.6]} 45. Rd7+
{[%clk 0:00:39.5]} 45... Kc6 {[%clk 0:00:09.2]} 46. Rd4 {[%clk 0:00:39.5]} 46...
Rf2+ {[%clk 0:00:10.1]} 47. Kd3 {[%clk 0:00:39.6]} 47... Qg6+ {[%clk 0:00:10.2]}
48. Kc4 {[%clk 0:00:39.6]} 48... Qe6+ {[%clk 0:00:10.1]} 49. Kb4 {[%clk
0:00:39.8]} 49... Re2 {[%clk 0:00:09.8]} 50. c4 {[%clk 0:00:39.7]} 50... Re4
{[%clk 0:00:09.1]} 51. Rd8 {[%clk 0:00:38.9]} 51... Qe7+ {[%clk 0:00:09.4]} 52.
Ka4 {[%clk 0:00:38.9]} 52... Qxd8 {[%clk 0:00:09.5]} 53. Kb4 {[%clk 0:00:38.8]}
53... Qb6+ {[%clk 0:00:09.6]} 0-1